Cogmind - Beta 10.2 --- EXPLORER MODE // 2021.02.13 @ 22:40:11 Player: Aero Result: Destroyed by D-53 Grenadier with Mini Grenade Launcher Performance ------------- Evolutions (0) 0 Regions Visited (4) 800 Robots Destroyed (28) 140 Value Destroyed (551) 551 Prototype IDs (2) 40 Alien Tech Used (0) 0 Bonus (-138) -138 TOTAL SCORE: 1393 Bonus ------- Follower Combat Kills 7 Friendly Fire -145 Cogmind --------- Core Integrity 0/250 Matter 300/300 Energy 100/100 System Corruption 1% Temperature Cool (0) Movement Core (1350) Ox26 Location -9/Mines Parts ------- > --- POWER (1) -------- (None) > --- PROPULSION (2) --- (None) > --- UTILITY (3) ------ Humpback Structural Scanner > --- WEAPON (2) ------- (None) > --- INVENTORY (24) --- Nuclear Core Fission Core Light Fission Core Light Treads Improved Treads Aluminum Leg Aluminum Leg Heat Sink High-capacity Storage Unit High-capacity Storage Unit High-capacity Storage Unit Humpback Medium Battery (200) Medium Matter Pod (100) Large Matter Pod (150) Grenade Launcher Rocket Launcher Mining Laser Welding Torch Hammer Peak State ------------ > --- POWER ------------ Light Nuclear Core > --- PROPULSION ------- Light Treads Light Treads > --- UTILITY ---------- Medium Storage Unit Large Storage Unit Structural Scanner > --- WEAPON ----------- Spread Laser Assault Rifle > --- INVENTORY -------- Light Ion Engine Aluminum Leg Aluminum Leg Heat Sink Medium Matter Pod Large Matter Pod Grenade Launcher Rocket Launcher Mining Laser Welding Torch Hammer [Rating: 12] Favorites ----------- Power Light Nuclear Core Engine Light Ion Engine Power Core Light Nuclear Core Propulsion Light Treads Treads Light Treads Utility Structural Scanner Device Structural Scanner Storage Medium Storage Unit Weapon Assault Rifle Energy Gun Medium Laser Ballistic Gun Assault Rifle Special Weapon Mining Laser Build | -11 -10 -10 -10 -9 ------- Run | Scr Mat Min Exi Min Slots Evolved 1 | . 1 . . . Power . | . . . . . Propulsion . | . . . . . Utility 1 | . 1 . . . Weapon . | . . . . . Parts Attached 18 | 8 3 6 1 . Power 3 | 1 1 1 . . Engine 2 | 1 . 1 . . Core 1 | . 1 . . . Reactor . | . . . . . Propulsion 2 | 2 . . . . Treads 2 | 2 . . . . Leg . | . . . . . Wheel . | . . . . . Hover . | . . . . . Flight . | . . . . . Utility 5 | 2 2 . 1 . Device 1 | 1 . . . . Storage 4 | 1 2 . 1 . Processor . | . . . . . Hackware . | . . . . . Protection . | . . . . . Artifact . | . . . . . Weapon 8 | 3 . 5 . . Energy Gun 3 | 1 . 2 . . Energy Cannon . | . . . . . Ballistic Gun 3 | 2 . 1 . . Ballistic Cannon . | . . . . . Launcher . | . . . . . Special Weapon 2 | . . 2 . . Impact Weapon . | . . . . . Slashing Weapon . | . . . . . Piercing Weapon . | . . . . . Special Melee Weapon . | . . . . . Unidentified Prototypes . | . . . . . Parts Lost 7 | . . 2 . 5 Power 2 | . . 1 . 1 Propulsion 2 | . . . . 2 Utility . | . . . . . Weapon 3 | . . 1 . 2 Highest Loss Streak 5 | . . 2 . 5 Average Slot Usage (%) 96 | . 100 100 89 85 Engine 7 | . 6 2 12 11 Core 4 | . 5 9 . . Treads 24 | . 25 25 25 24 Device 12 | . 12 12 12 12 Storage 21 | . 25 25 14 12 Energy Gun 12 | . 12 12 12 12 Ballistic Gun 11 | . 12 11 12 11 Naked Turns . | . . . . . Heaviest Build 89 | 18 34 34 89 89 Greatest Support 40 | 40 40 40 40 40 Greatest Overweight (x) 26 | 5 . . 2 26 Average Overweight (x) . | . . . 1 2 Largest Inventory Capacity 24 | 8 14 14 24 24 Average Capacity 14 | 7 10 14 22 24 Most Carried 21 | 8 11 12 19 21 Average Carried 12 | 5 9 11 17 20 Final Capacity 24 | 8 14 14 24 24 Final Carried 21 | 8 11 10 19 21 Class Distribution -------------------- 74% | Hacker-Mutant 25% | Hauler-Mutant Dominant Class ---------------- Hacker-Mutant | -10/Materials Hacker-Mutant | -10/Mines Hauler-Mutant | -10/Exiles Hauler-Mutant | -9/Mines Resources | -11 -10 -10 -10 -9 ----------- Run | Scr Mat Min Exi Min Matter Collected 897 | 377 336 137 13 34 Remotely . | . . . . . Salvage Created 844 | 114 421 228 . 81 Parts 48 | 6 25 13 . 4 Haulers Intercepted . | . . . . . Recyclers Shooed 1 | . . 1 . . Parts Field Recycled . | . . . . . Retrieved Matter . | . . . . . Parts Self-Destructed . | . . . . . Prevented . | . . . . . Kills | -11 -10 -10 -10 -9 ------- Run | Scr Mat Min Exi Min Combat Hostiles Destroyed 21 | . 11 6 . 4 Guns 21 | . 11 6 . 4 Classes Destroyed 6 | 2 3 . . 1 Worker 4 | 2 . 2 . . Recycler 1 | 1 . . . . Watcher 3 | . 3 . . . Swarmer 8 | . 4 2 . 2 Grunt 11 | . 7 4 . . Assembled 2 | . . . . 2 Thug 1 | . . . . 1 Best Kill Streak 3 | 2 3 2 . 2 Combat Bots Only 2 | . 2 2 . 2 Max Kills in Single Turn 1 | 1 1 1 . 1 Gunslinging . | . . . . . Exploded . | . . . . . Melee . | . . . . . Uniques/NPCs Destroyed . | . . . . . Combat | -11 -10 -10 -10 -9 -------- Run | Scr Mat Min Exi Min Damage Taken 1058 | . 170 336 . 552 Core 254 | . 45 64 . 145 Absorbed by Shields . | . . . . . Core Remaining (%) 100 | 100 . . . . Volleys Fired 97 | 9 42 34 . 12 Largest 2 | 2 2 2 . 2 Hottest 85 | 70 70 85 . 85 Shots Fired 184 | 18 81 64 . 21 Gun 184 | 18 81 64 . 21 Cannon . | . . . . . Launcher . | . . . . . Special . | . . . . . Kinetic 93 | 9 42 30 . 12 Thermal 91 | 9 39 34 . 9 Explosive . | . . . . . Electromagnetic . | . . . . . Robot Hit Streak 32 | 16 24 32 . 16 Robot Miss Streak 2 | . 2 2 . 2 Penetration Max . | . . . . . Secondary Targets 3 | . 1 2 . . Max Gunslinging Chain 1 | . 1 1 . . Shots Hit Robots 154 | 16 62 57 . 19 Core Hits 75 | 4 24 24 . 23 Critical Hits 2 | . 2 . . . Critical Kills 2 | . 2 . . . Critical Parts Destroyed . | . . . . . Melee Attacks . | . . . . . Impact . | . . . . . Slashing . | . . . . . Piercing . | . . . . . Sneak Attacks . | . . . . . Combat Hostiles . | . . . . . Follow-up Attacks . | . . . . . Damage Inflicted 1841 | 171 731 700 . 239 Guns 1841 | 171 731 700 . 239 Cannons . | . . . . . Explosions . | . . . . . Melee . | . . . . . Ramming . | . . . . . Kinetic 802 | 70 378 271 . 83 Thermal 1039 | 101 353 429 . 156 Explosive . | . . . . . Electromagnetic . | . . . . . Impact . | . . . . . Slashing . | . . . . . Piercing . | . . . . . Highest Corruption 1 | . 1 1 1 1 Average Corruption 1 | . 1 1 1 1 Corruption Purged . | . . . . . Effects 12 | . 1 2 8 1 Message Errors 6 | . . 1 4 1 Energy Discharges 4 | . 1 1 2 . Data Loss (minor) 2 | . . . 2 . Overload Shots . | . . . . . Overflow Damage . | . . . . . Projectiles . | . . . . . Explosions . | . . . . . Melee . | . . . . . Knockbacks . | . . . . . Impact . | . . . . . Kinetic . | . . . . . Secondary . | . . . . . Self-Inflicted Damage . | . . . . . Shots . | . . . . . Rammed . | . . . . . Targets Rammed . | . . . . . Kicked . | . . . . . Crushed . | . . . . . Highest Temperature 481 | 27 126 481 . 105 Average Temperature 80 | 14 30 154 . 43 Received Heat Transfer 462 | . 120 297 . 45 Effects 7 | . . 7 . . Shutdowns 3 | . . 3 . . Energy Bleed 2 | . . 2 . . Interference 2 | . . 2 . . Siege Activations . | . . . . . Robots Corrupted . | . . . . . Combat Hostiles . | . . . . . Parts Fried . | . . . . . Impact Corruptions . | . . . . . Robots Melted . | . . . . . Combat Hostiles . | . . . . . Parts Melted 1 | . . 1 . . Heat Transferred 2548 | 296 1036 1031 . 185 Parts Sabotaged . | . . . . . Parts Stolen . | . . . . . Parts Stripped . | . . . . . Power Chain Reactions . | . . . . . Missiles Intercepted . | . . . . . Alert | -11 -10 -10 -10 -9 ------- Run | Scr Mat Min Exi Min Peak Influence 197 | 15 197 106 . 74 Initial 7 | . 7 6 . . Average 38 | 8 58 26 . 15 Maximum Alert Level . | . . . . . Low Security (%) 100 | 100 100 100 . 100 Level 1 . | . . . . . Level 2 . | . . . . . Level 3 . | . . . . . Level 4 . | . . . . . Level 5 . | . . . . . High Security . | . . . . . Max Security . | . . . . . Squads Dispatched 2 | . 2 . . . Investigation 2 | . 2 . . . Extermination . | . . . . . Reinforcement . | . . . . . Assault . | . . . . . Garrison . | . . . . . Intercept . | . . . . . Construction Impeded . | . . . . . Haulers Reinforced . | . . . . . Stealth | -11 -10 -10 -10 -9 --------- Run | Scr Mat Min Exi Min Distress Signals . | . . . . . Communications Jammed . | . . . . . Distress Signals . | . . . . . Times Spotted 42 | . 21 6 . 15 Peak Tracking Total 6 | . 3 2 . 6 Tactical Retreats 1 | . 1 . . . Traps | -11 -10 -10 -10 -9 ------- Run | Scr Mat Min Exi Min Traps Triggered 1 | . 1 . . . Indirectly . | . . . . . Trap Hack Attempts . | . . . . . Triggered . | . . . . . Disarmed . | . . . . . Reprogrammed 9 | . 9 . . . Reused . | . . . . . Traps Extracted . | . . . . . Installed . | . . . . . Triggered . | . . . . . Machines | -11 -10 -10 -10 -9 ---------- Run | Scr Mat Min Exi Min Machines Disabled . | . . . . . Max in Single Turn . | . . . . . Machines Sabotaged . | . . . . . Garrisons Compromised . | . . . . . Overloaded Fab Kills . | . . . . . Fab Network Shutdowns . | . . . . . Hacking | -11 -10 -10 -10 -9 --------- Run | Scr Mat Min Exi Min Machines Accessed 11 | . 7 . 4 . Terminals 7 | . 7 . . . Fabricators . | . . . . . Repair Stations . | . . . . . Recycling Units . | . . . . . Scanalyzers . | . . . . . Garrison Access . | . . . . . Total Hacks 74 | . 25 . 49 . Successful 67 | . 18 . 49 . Failed 7 | . 7 . . . Catastrophic . | . . . . . Database Lockouts . | . . . . . Manual . | . . . . . Terminals 25 | . 25 . . . Fabricators . | . . . . . Repair Stations . | . . . . . Recycling Units . | . . . . . Scanalyzers . | . . . . . Garrison Access . | . . . . . Terminal Hacks 67 | . 18 . 49 . Record 50 | . 1 . 49 . Prototype ID Bank 1 | . 1 . . . Level Access Points 1 | . 1 . . . Emergency Access Points 1 | . 1 . . . Alert Level 1 | . 1 . . . Locate Traps 1 | . 1 . . . Reprogram Traps 3 | . 3 . . . Recall Reinforcements 1 | . 1 . . . Hauler Manifests 4 | . 4 . . . Registered Components 1 | . 1 . . . Zone Layout 3 | . 3 . . . Fabricator Hacks . | . . . . . Repair Station Hacks . | . . . . . Recycling Unit Hacks . | . . . . . Scanalyzer . | . . . . . Garrison Access Hacks . | . . . . . Unauthorized Hacks . | . . . . . Terminals . | . . . . . Fabricators . | . . . . . Repair Stations . | . . . . . Recycling Units . | . . . . . Scanalyzers . | . . . . . Garrison Access . | . . . . . Data Cores Recovered . | . . . . . Used . | . . . . . Hacking Detections 7 | . 7 . . . Full Trace Events 6 | . 6 . . . Feedback Events 1 | . 1 . . . Corruption 1 | . 1 . . . Feedback Blocked . | . . . . . Robot Schematics Acquired . | . . . . . Robots Built . | . . . . . Matter . | . . . . . Time . | . . . . . Total Robot Build Rating . | . . . . . Part Schematics Acquired . | . . . . . Parts Built . | . . . . . Matter . | . . . . . Time . | . . . . . Total Part Build Rating . | . . . . . Parts Repaired . | . . . . . Time . | . . . . . Parts Recycled . | . . . . . Recycled Matter . | . . . . . Retrieved Matter . | . . . . . Retrieved Components . | . . . . . Parts Scanalyzed . | . . . . . Part Schematics Acquired . | . . . . . Parts Damaged . | . . . . . Bothacking | -11 -10 -10 -10 -9 ------------ Run | Scr Mat Min Exi Min Used RIF Installer . | . . . . . Robots Hacked . | . . . . . Non-combat . | . . . . . Combat . | . . . . . Robot Hacks Applied . | . . . . . Relay Couplers Released . | . . . . . Robots Rewired . | . . . . . Allies Hacked . | . . . . . Hacks Repelled . | . . . . . Allies | -11 -10 -10 -10 -9 -------- Run | Scr Mat Min Exi Min Total Allies 5 | . . . . 5 Largest Group 4 | . . . . 4 Highest-Rated Group 77 | . . . . 77 Highest-Rated Ally 31 | . . . . 31 Total Orders . | . . . . . Ally Attacks 23 | . . . . 23 Total Damage 273 | . . . . 273 Kills 5 | . . . . 5 Allies Corrupted . | . . . . . Allies Melted . | . . . . . Intel | -11 -10 -10 -10 -9 ------- Run | Scr Mat Min Exi Min Robot Analysis Total . | . . . . . Derelict Logs Recovered 3 | . . 1 . 2 Drone Launches . | . . . . . Drone Recoveries . | . . . . . Exploration | -11 -10 -10 -10 -9 ------------- Run | Scr Mat Min Exi Min Turns Passed 4288 | 335 1588 1123 876 366 Spaces Moved 2336 | 184 908 636 445 163 Core 29 | 28 . . . 1 Treads 2307 | 156 908 636 445 162 Legs . | . . . . . Wheels . | . . . . . Hover . | . . . . . Flight . | . . . . . Fastest Speed 50 | 50 160 160 160 200 Average Speed 169 | 155 160 160 192 207 Slowest Speed 1350 | 300 160 160 200 1350 Overloaded Moves . | . . . . . Propulsion Burnouts . | . . . . . Robots Hopped . | . . . . . Cave-ins Triggered . | . . . . . Exploration Rate (%) 64 | 8 94 100 72 50 Regions Visited 4 Branch Regions 3 Pre-discovered Areas 3 | . . 1 1 1 Known Exits Taken 4 | 1 1 1 1 . Unknown Exits Taken . | . . . . . Scrap Searched 1 | . . . . 1 Spaces Dug . | . . . . . Terrain Destroyed . | . . . . . Melee . | . . . . . Projectile . | . . . . . AOE . | . . . . . Terrain Rammed . | . . . . . Walls Destroyed . | . . . . . Machines Disabled . | . . . . . Actions | -11 -10 -10 -10 -9 --------- Run | Scr Mat Min Exi Min Total 2501 | 216 964 676 468 177 Wait . | . . . . . Move 2332 | 183 907 635 444 163 Hop . | . . . . . Pick Up 45 | 15 7 1 20 2 Fast Attach 1 | . 1 . . . Attach 12 | 8 1 2 1 . Detach 1 | 1 . . . . Swap 5 | . 1 4 . . Drop 8 | . 5 . 3 . Fire 97 | 9 42 34 . 12 Melee . | . . . . . Ram . | . . . . . Kick . | . . . . . Crush . | . . . . . Escape Stasis . | . . . . . Rewire . | . . . . . Trap . | . . . . . Miscellaneous . | . . . . . Route ------- -11/Scrapyard -10/Materials (discovered 4 exits: *Mat x3 / *Min) -10/Mines (discovered 3 exits: *Mat x2 / *Exi) -10/Exiles (discovered 2 exits: *Min x2) -9/Mines (discovered 1 exit: *Mat) History --------- Turn | Location | Event 7 | -11/Scrapyard | Identified exit to Materials 7 | -11/Scrapyard | Discovered exit to Materials (range 16) 336 | -11/Scrapyard | Entered Materials 336 | -10/Materials | Evolved 1 slot: Utility x1 357 | -10/Materials | Build established: Hacker-Mutant 612 | -10/Materials | Identified exit to Materials 612 | -10/Materials | Discovered exit to Materials (range 8) 706 | -10/Materials | Identified exit to Mines 706 | -10/Materials | Discovered exit to Mines (range 13) 816 | -10/Materials | Discovered exit to Materials (range 16) 1924 | -10/Materials | Entered Mines 1931 | -10/Mines | Received a Rocket Launcher from a helpful Derelict 2337 | -10/Mines | Discovered exit to Materials (range 7) 2846 | -10/Mines | Discovered exit to Materials (range 5) 2865 | -10/Mines | Deemed a non-threat by the Exiles lab entrance 2865 | -10/Mines | Identified exit to Exiles 2865 | -10/Mines | Discovered exit to Exiles (range 5) 3047 | -10/Mines | Entered Exiles 3105 | -10/Exiles | Met 8R-AWN 3130 | -10/Exiles | Met EX-HEX 3301 | -10/Exiles | Met EX-DEC 3343 | -10/Exiles | Learned location of Zion (-7) 3421 | -10/Exiles | Identified exit to Mines 3421 | -10/Exiles | Discovered exit to Mines (range 12) 3500 | -10/Exiles | Build established: Hauler-Mutant 3615 | -10/Exiles | Met EX-BIN 3897 | -10/Exiles | Discovered exit to Mines (range 14) 3923 | -10/Exiles | Entered Mines 3930 | -9/Mines | Assembled infested the area 3959 | -9/Mines | Assisted by bots powering up and referring to "LRC-V3" 4038 | -9/Mines | Learned Materials security intel 4146 | -9/Mines | Identified exit to Materials 4146 | -9/Mines | Discovered exit to Materials (range 3) 4280 | -9/Mines | Core integrity fell below 50% 4285 | -9/Mines | Core integrity fell below 20% 4289 | -9/Mines | Destroyed by D-53 Grenadier with Mini Grenade Launcher Last Messages --------------- U-05 Engineer builds a Wall. U-05 Engineer lays Concrete. A pair of derelicts emerge from the shadows: "We're, um, lost. You wouldn't happen to know the way out of here, would you?" EXIT=FOUND: MATERIALS 0/AIKAK#G&Q83N|TEIAKI S-10 Pest destroyed. Acquired derelict log, extracted data. World map confirmed: -7/Zion. Trooper 2a destroyed. J5-7J5(z) destroyed. Trooper 2b destroyed. 0A-9V9(g) destroyed. [Achievement: Backstab] Lgt. Treads destroyed. Assault Rifle destroyed. Lgt. Ion Engine destroyed. Lgt. Treads destroyed. Spread Laser destroyed. The unstable cave ceiling collapses. Map ----- +----------------------------------------------------+ | ## #?### #?????????## ?????? | | # # ### ########### #????????? | | # ## < #????????? | | # ## #????????? | | ### ##### ########## #????????? | | ??# #?##### #????????# #????????? | | ??# ###?????###????????# #????????? | | ??# ##????????????????## #????????? | | ??# #???????????????### ##???????? | | ??# ##?????????????## ###?????? | | #?# ##?????????????# ##????? | | ###% ##????????????## #????? | | ## ##???????????## =% ##???? | | ##???????#???# [ ##??? | | #???????# ### [%%= #??? | | # ### #???????# ## [ #?? | | #######???????# ##?# #?? | | #?????????????###### #???# #?? | | #??????????????????# ##????# #?? | | #??????????????????## ##????## #?? | | ????????????????????### ####?? #?? | | ?????????????????????### # #? #?? | | ????????????????????## # ##?? | | ????????????????????# #??? | | ????????????????????# # ##??????? | | ????????????????????# @ #????????? | | ??????????????????### # #????????? | | ??????????????????# #????????? | | ?????????????????# #????????? | | ????????????????# $ #????????? | | ????????????????# d ?????? | | ????????????????# # #??? | | ????????????????# ### # #####??? | | ????????????????# ??### s ##??????? | | ??????????????? ?????# s #???????? | | ?????????????? ##??????# g ???????? | | ????????????? ?????????# ??????? | | ??????????????????????? g #?????? | | ??????????????????????? ##?????? | | ??????????????????????? ##??????? | | ???????????????????????### ####???????? | | ?????????????????????????? #??????????? | | ?????????????????????????? ??????????? | | ?????????????????????????? ???????????? | | ???????????????????????????????????????? | | ???????????????????????????????????????? | | ???????????????????????????????????????? | | ???????????????????????????????????????? | | ???????????????????????????????????????? | | ???????????????????????????????????????? | +----------------------------------------------------+ Best States ------------- Heat Dissipation 25 Energy Generation 14 Energy Capacity 250 Matter Stores 300 Matter Capacity 300 Sight Range 16 Terrain Scan Density 10 Resistance: KI 35 Resistance: TH 35 Resistance: EX 35 Resistance: EM 35 Resistance: I 35 Resistance: S 35 Resistance: P 35 Evasion (%) 50 Recoil Reduction 2 Offensive Hacking 20 Item Schematics ----------------- None Robot Schematics ------------------ None Fabricated ------------ Nothing Alien Tech Used ----------------- None Achievements -------------- Backstab Challenges ------------ None Game ------ Seed BackupRecoilInterpreter Manual? 0 Play Time 00:45:12 Cumulative 6.3 hours Start 2021.02.13 @ 21:50:30 End 2021.02.13 @ 22:40:11 Sessions 1 Manual Loads 0 Difficulty Explorer Special Mode None Game No. 5 Rogue 0 Adventurer 0 Explorer 5 Win Type - Total 0 Types 0/0/0/0/0/0/0/0/0 Lore% 12 Gallery% 10 Achievement% 13 Wizard Run 0 Options --------- ASCII 0 Keyboard 0 Movement Arrows Keybinds 0 Fullscreen 1 Font 24/Smallcaps Map View 76x50 Tactical HUD 0 Map Filters NONE Filters NONE Steam 1 RUN: 4c2dc359-7a53-4a82-abe9-6c7203dbec6b